[Event "Romanian Rapid Open 2022"]
[Site "Sebes"]
[Date "2022.12.02"]
[Round "4.9"]
[White "Costachi, Mihnea"]
[Black "Cosma, Ioan"]
[Result "1/2-1/2"]
[ECO "E11"]
[WhiteElo "2476"]
[BlackElo "2368"]
[Annotator "TA"]
[PlyCount "108"]
[EventDate "2022.12.02"]
[EventType "rapid"]
[EventCountry "ROU"]
[SourceTitle "playchess.com"]
[Source "ChessBase"]
[SourceQuality "1"]
[TimeControl "600+5"]

{[%evp 25,108,7,11,14,12,0,3,0,0,0,0,0,0,0,0,0,0,0,5,0,27,26,26,21,37,19,20,21,41,8,19,0,3,0,0,0,0,0,0,0,0,0,0,0,0,0,0,0,0,0,0,0,0,0,0,0,0,0,0,0,0,0,0,0,0,0,0,0,0,0,0,0,0,0,0,0,0,0,0,0,0,0,463,0,-8]} 1. d4 {[%emt 0:00:02]} e6 {[%emt 0:00:02]} 2. c4 {[%emt 0:00:02]} Bb4+ {[%emt 0:00:02]} 3. Bd2 {[%emt 0:00:04]} Bxd2+ {[%emt 0:00:03]} 4. Qxd2 {[%emt 0:00:01]} d5 {[%emt 0:00:01]} 5. Nc3 {[%emt 0:00:09]} Nf6 {[%emt 0:00:01]} 6. e3 {[%emt 0:00:10]} O-O {[%emt 0:00:03]} 7. Nf3 {[%emt 0:00:02]} Qe7 {[%emt 0:00:04]} 8. Be2 {[%emt 0:00:17]} Rd8 {[%emt 0:00:14]} 9. O-O {[%emt 0:00:58]} dxc4 {[%emt 0:00:03]} 10. Bxc4 {[%emt 0:00:03]} c5 {[%emt 0:00:02]} 11. Qe2 {[%emt 0:00:26]} cxd4 {[%emt 0:00:24]} 12. exd4 {[%emt 0:00:19]} Nc6 {[%emt 0:00:06]} 13. Rad1 {[%emt 0:00:04]} Bd7 {[%emt 0:00:10]} 14. Rfe1 {[%emt 0:00:32] E11: Bogo-Indian.} Rac8 {[%emt 0:00:29] [#]} 15. d5 $146 {[%emt 0:00:56]} ({Predecessor:} 15. a3 Be8 16. Ba2 Qc7 17. d5 exd5 18. Nxd5 Nxd5 19. Bxd5 Kf8 20. Qe4 g6 21. Qe3 Kg7 {1-0 (50) Indjic,A (2519)-Sedlak,N (2577) Vrnjacka Banja 2013}) 15... exd5 {[%emt 0:00:14]} 16. Qf1 {[%emt 0:01:14]} Be6 {[%emt 0:01:16]} 17. Nxd5 {[%emt 0:00:10][%mdl 64] [#]} Nxd5 {[%emt 0:00:03]} 18. Bxd5 {[%emt 0:00:01][%mdl 64] Pin} Rd6 {[%emt 0:00:31]} 19. Bxe6 {[%emt 0:01:34]} Rxe6 {[%emt 0:00:02]} 20. Rxe6 {[%emt 0:00:17]} Qxe6 {[%emt 0:00:03]} 21. Qb5 {[%emt 0:00:02]} Qe7 {[%emt 0:01:39]} 22. Qf5 {[%emt 0:00:37]} Qe6 {[%emt 0:00:59]} 23. Qxe6 fxe6 $11 {[%emt 0:00:01][%mdl 4096] Endgame KRN-KRN} 24. h4 {[%emt 0:01:13]} Re8 {[%emt 0:00:49]} 25. Ng5 {[%emt 0:00:23]} (25. Rd7 $5 {[%cal Rd7b7]}) 25... h6 {[%emt 0:00:17]} 26. Ne4 {[%emt 0:00:02]} Rd8 {[%emt 0:00:06] Prevents Rd7.} 27. Re1 {[%emt 0:00:02]} e5 {[%emt 0:00:14]} 28. Re2 {[%emt 0:00:19]} Kf7 {[%emt 0:00:10]} 29. Kh2 {[%emt 0:00:31]} Rd4 {[%emt 0:00:12]} 30. h5 {[%emt 0:00:10]} Ne7 {[%emt 0:00:22]} 31. g3 {[%emt 0:00:14]} b6 {[%emt 0:00:12]} 32. Nd2 {[%emt 0:00:05]} Rd5 {[%emt 0:00:22]} 33. Kg2 {[%emt 0:00:16]} Kf6 {[%emt 0:00:24]} 34. Ne4+ {[%emt 0:00:47]} Kf5 {[%emt 0:00:03]} 35. Nc3 {[%emt 0:00:06]} Rd7 {[%emt 0:00:16]} 36. a3 {[%emt 0:00:30]} Nd5 {[%emt 0:00:21]} 37. Nxd5 {[%emt 0:00:08]} Rxd5 {[%emt 0:00:02] KR-KR} 38. Rc2 {[%emt 0:00:00]} Rd7 {[%emt 0:00:14] Against Rc7} 39. f3 {[%emt 0:00:18]} Kg5 {[%emt 0:00:05]} 40. Re2 {[%emt 0:00:06]} Kxh5 {[%emt 0:00:29]} 41. Rxe5+ {[%emt 0:00:01]} Kg6 {[%emt 0:00:01]} 42. Rb5 {[%emt 0:00:07]} Kf7 {[%emt 0:00:19]} 43. g4 {[%emt 0:00:01]} Ke6 {[%emt 0:00:09]} 44. Kg3 {[%emt 0:00:04]} Rd2 {[%emt 0:00:20]} 45. Kf4 {[%emt 0:00:13]} g5+ {[%emt 0:00:18]} 46. Ke3 {[%emt 0:00:01]} Rc2 {[%emt 0:00:01]} 47. Kd3 {[%emt 0:00:08]} Rf2 {[%emt 0:00:09]} 48. Ke3 {[%emt 0:00:00]} Rc2 {[%emt 0:00:02]} 49. a4 {[%emt 0:00:10]} Kd6 {[%emt 0:00:19]} 50. Kd3 {[%emt 0:00:06]} Rf2 {[%emt 0:00:03]} 51. Ke3 {[%emt 0:00:00]} Rc2 {[%emt 0:00:02]} 52. Kd3 {[%emt 0:00:14]} Rf2 {[%emt 0:00:04]} 53. Ke4 {[%emt 0:00:15]} a5 $2 {[%emt 0:01:33][%mdl 8192] [#]} (53... Ke6 $11 {and Black stays safe.}) 54. Rf5 $2 (54. Rxb6+ $18 Kc5 55. Rxh6) 54... Rxb2 {Weighted Error Value: White=0.16 (very precise) /Black=0.24 (precise)} 1/2-1/2

[Event "Romanian Rapid Open 2022"]
[Site "Sebes"]
[Date "2022.12.02"]
[Round "4.10"]
[White "Itkis, Boris"]
[Black "Arandjelovic, Aleksandar Z"]
[Result "1-0"]
[ECO "A80"]
[WhiteElo "2343"]
[BlackElo "1899"]
[Annotator "TA"]
[PlyCount "95"]
[EventDate "2022.12.02"]
[EventType "rapid"]
[EventCountry "ROU"]
[SourceTitle "playchess.com"]
[Source "ChessBase"]
[SourceQuality "1"]
[TimeControl "600+5"]

{[%evp 9,95,37,58,58,55,55,65,50,58,60,66,67,75,53,67,47,84,33,102,77,82,91,83,89,120,78,81,75,161,110,206,116,125,54,60,65,73,13,82,68,82,38,178,191,286,294,292,291,323,319,602,429,395,291,343,326,372,336,321,331,557,441,510,450,666,646,644,643,639,595,29988,29989,29988,2235,2816,1763,1840,1750,1510,1440,2866,2379,29936,5789,29978,29971,5677,2883]} 1. d4 {[%emt 0:00:03]} f5 {[%emt 0:00:03]} 2. Nc3 {[%emt 0:00:02]} Nf6 {[%emt 0:00:05]} 3. Bg5 {[%emt 0:00:03]} d5 {[%emt 0:00:01]} 4. e3 {[%emt 0:00:03]} Nbd7 {[%emt 0:00:13]} 5. Nf3 {[%emt 0:00:02]} g6 {[%emt 0:00:29]} 6. Bd3 {[%emt 0:00:08] A80: Dutch Defence: Unusual White second moves.} Bg7 {[%emt 0:00:04]} 7. O-O {[%emt 0:00:01]} c6 {[%emt 0:00:14]} 8. Ne2 {[%emt 0:00:01] White is slightly better.} Ne4 {[%emt 0:00:27]} 9. Bf4 {[%emt 0:00:01] [#]} Ndf6 $146 {[%emt 0:00:20]} ({Predecessor:} 9... O-O 10. c4 e6 11. Rc1 g5 12. Be5 Nxe5 13. Nxe5 Bd7 14. f3 Nc5 15. Bb1 Na6 {0-1 (32) Lyell,M (2228)-Liu,G (2358) Kecskemet 2014}) 10. c4 {[%emt 0:00:03]} e6 {[%emt 0:00:15]} 11. Be5 {[%emt 0:00:35]} O-O {[%emt 0:00:08]} 12. Qb3 {[%emt 0:00:43]} h6 {[%emt 0:00:31]} 13. Bxe4 {[%emt 0:00:31]} (13. Rac1 $16) 13... Nxe4 {[%emt 0:00:46]} ({Black should play} 13... dxe4 $14 14. Nd2 b6) 14. Rfd1 {[%emt 0:00:13]} g5 {[%emt 0:00:14]} 15. Bxg7 {[%emt 0:00:03]} Kxg7 {[%emt 0:00:02]} 16. Ne5 {[%emt 0:00:05]} Qe8 {[%emt 0:00:44]} 17. f3 {[%emt 0:00:10]} Nd6 {[%emt 0:00:15]} 18. Rac1 {[%emt 0:00:59]} Qh5 {[%emt 0:01:27]} (18... Qe7 $16) 19. Qb4 {[%emt 0:00:10]} (19. Ng3 $18 Qe8 20. c5) 19... Rd8 {[%emt 0:00:35]} (19... Nxc4 $16 {was called for.} 20. Nxc4 dxc4) 20. Rf1 {[%emt 0:00:53]} (20. Qa5 $18 b6 21. Qb4) 20... Qe8 {[%emt 0:00:18]} 21. Qe1 {[%emt 0:00:36] White is much more active.} (21. cxd5 $16 exd5 22. h4) 21... Nxc4 $14 {[%emt 0:00:43]} 22. Nxc4 {[%emt 0:00:03]} dxc4 {[%emt 0:00:01]} 23. Rxc4 {[%emt 0:00:02]} ({White should try} 23. h4 $16) 23... e5 {[%emt 0:00:07]} (23... b6 $1 $11 {keeps the balance.}) 24. Qc3 {[%emt 0:00:04]} Be6 {[%emt 0:04:03]} 25. Rc5 Rd5 {[%emt 0:00:00] This move loses the game for Black.} (25... Bd5 $1 $14) 26. Rxd5 $18 {[%emt 0:00:20]} cxd5 {[%emt 0:00:00]} (26... Bxd5 $142 27. dxe5 Qg6) 27. dxe5 {[%emt 0:00:03]} Rc8 {[%emt 0:00:00]} 28. Qd2 {[%emt 0:00:02]} Qa4 {[%emt 0:00:00]} 29. Nd4 {[%emt 0:00:08]} Kf7 {[%emt 0:00:00] [#]} (29... Qd7 30. f4 g4) 30. b3 {[%emt 0:00:07]} Qd7 {[%emt 0:00:00]} 31. Rc1 {[%emt 0:00:12]} a6 {[%emt 0:00:00]} 32. h3 {[%emt 0:00:12]} Rc7 {[%emt 0:00:00]} 33. Rxc7 {[%emt 0:00:06]} Qxc7 {[%emt 0:00:00][%mdl 4096] Endgame KQB-KQN} 34. f4 {[%emt 0:00:03]} b5 $2 {[%emt 0:00:00]} (34... Bc8 35. Kf2 gxf4 36. exf4 Bd7) 35. Kh2 {[%emt 0:00:05]} h5 {[%emt 0:00:06]} 36. Nf3 {[%emt 0:00:21]} g4 {[%emt 0:00:21]} (36... gxf4 $142 37. Ng5+ Ke7 38. Qb4+ Kd7 39. exf4 Qb6) 37. Ng5+ {[%emt 0:00:01]} Ke7 {[%emt 0:00:04]} 38. Qb4+ {[%emt 0:00:00]} Kd7 {[%emt 0:00:13]} 39. Qf8 {[%emt 0:00:05]} Qc1 {[%emt 0:00:11]} 40. Qd6+ {[%emt 0:00:03]} Kc8 {[%emt 0:00:08]} 41. Qxe6+ {[%emt 0:00:00]} (41. Nxe6 $142 a5 42. Qf8+ Kb7 43. Nc5+ Qxc5 44. Qxc5 g3+ 45. Kxg3 d4 46. exd4) 41... Kb8 {[%emt 0:00:00]} 42. Qd6+ {[%emt 0:00:43]} Ka7 {[%emt 0:00:05]} 43. Qd7+ {[%emt 0:00:14]} Kb6 {[%emt 0:00:04]} 44. Qxf5 {[%emt 0:00:02]} Qxe3 {[%emt 0:00:17]} 45. hxg4 {[%emt 0:00:06]} h4 {[%emt 0:00:03]} 46. Nf3 {[%emt 0:00:07]} (46. Qf6+ $142 Kb7 47. Nf3 d4 48. e6 d3 49. Qf7+ Kb6 50. e7 d2 {[#]} 51. Nxd2 $1 {[%mdl 512]} Qg3+ 52. Kg1 Qe3+ 53. Kf1) 46... Qf2 {[%emt 0:00:01]} 47. Qf6+ {[%emt 0:00:02]} Ka5 {[%emt 0:00:02]} 48. Qxh4 {[%emt 0:00:02] Weighted Error Value: White=0.30/Black=1.03} 1-0

[Event "Romanian Rapid Open 2022"]
[Site "Sebes"]
[Date "2022.12.02"]
[Round "4.11"]
[White "Samu, Sorin-Mihai"]
[Black "Anton, Teodor"]
[Result "0-1"]
[ECO "E11"]
[WhiteElo "1955"]
[BlackElo "2438"]
[Annotator "TA"]
[PlyCount "66"]
[EventDate "2022.12.02"]
[EventType "rapid"]
[EventCountry "ROU"]
[SourceTitle "playchess.com"]
[Source "ChessBase"]
[SourceQuality "1"]
[TimeControl "600+5"]

{[%evp 9,65,0,16,-6,-7,-14,0,-9,0,0,0,-3,-16,-30,12,8,5,3,6,10,26,0,0,0,14,-140,-148,-152,-123,-126,-85,-77,7,-158,-122,-122,-109,-111,-44,-41,-55,-98,-87,-323,-15,-11,-6,-18,-19,-251,-248,-390,-251,-378,-260,-318,-314,-29999]} 1. d4 {[%emt 0:00:00]} Nf6 {[%emt 0:00:02]} 2. c4 {[%emt 0:00:01]} e6 {[%emt 0:00:02]} 3. Nf3 {[%emt 0:00:02]} Bb4+ {[%emt 0:00:01]} 4. Bd2 {[%emt 0:00:02]} c5 {[%emt 0:00:02]} 5. dxc5 {[%emt 0:00:03]} Bxc5 {[%emt 0:00:04]} 6. e3 {[%emt 0:00:01] E11: Bogo-Indian.} b6 {[%emt 0:00:04]} 7. Be2 {[%emt 0:00:04]} Bb7 {[%emt 0:00:01]} 8. O-O {[%emt 0:00:09] The position is equal.} O-O {[%emt 0:00:04]} 9. b4 {[%emt 0:00:10]} Be7 {[%emt 0:00:07]} 10. Qb3 {[%emt 0:00:07] [#]} d5 $146 {[%emt 0:00:09]} ({Predecessor:} 10... d6 11. Rd1 Nbd7 12. a4 Rb8 13. Na3 a6 14. Nd4 e5 15. Nf5 Re8 16. f3 Bf8 {1-0 (44) Boj Marques,J (1978)-Duenas,A (1912) Benidorm 2014}) 11. Rd1 {[%emt 0:00:07]} Ne4 {[%emt 0:00:13]} 12. Be1 {[%emt 0:00:05]} Bf6 {[%emt 0:01:07]} 13. Nc3 {[%emt 0:00:05][%cal Rc4d5]} Nxc3 {[%emt 0:00:06]} (13... Qe7 {feels hotter.} 14. Rac1 Bxc3 15. Bxc3 dxc4 16. Qxc4 Rc8) 14. Bxc3 {[%emt 0:00:02]} Nd7 {[%emt 0:00:05]} 15. a4 {[%emt 0:00:26]} Rc8 {[%emt 0:00:12]} 16. Bxf6 {[%emt 0:00:20]} Qxf6 {[%emt 0:00:39]} 17. a5 $2 {[%emt 0:00:59]} (17. Qa3 $11) 17... dxc4 $17 {[%emt 0:00:17]} 18. Qc2 {[%emt 0:00:14]} Ne5 {[%emt 0:00:30][%cal Rb7f3]} 19. Nd4 {[%emt 0:00:55]} Qg5 {[%emt 0:02:09][%csl Gb7][%cal Rg5g2]} 20. g3 {[%emt 0:00:59]} Nc6 {[%emt 0:01:37]} (20... Qe7 $17 21. axb6 axb6) 21. Nf3 $2 {[%emt 0:00:21]} (21. Qxc4 $11 Nxd4 22. Qxd4) 21... Nxb4 {[%emt 0:00:27]} 22. Qxh7+ {[%emt 0:01:07]} Kxh7 {[%emt 0:00:02] Chess con chili.} 23. Nxg5+ {[%emt 0:00:01]} Kg8 {[%emt 0:00:16]} (23... Kg6 $17 24. h4 bxa5) 24. axb6 $15 {[%emt 0:00:07]} axb6 {[%emt 0:00:02]} 25. Ra7 {[%emt 0:00:02] Prevents b5.} c3 {[%emt 0:01:14]} 26. Rc1 {[%emt 0:01:03] Against c2} (26. Rxb7 $17 c2 27. Rc1 (27. Rxb6 Nd5 $17)) 26... c2 $2 {[%emt 0:00:02]} 27. Ra4 $11 {[%emt 0:01:37][%mdl 64] [#] Against Na2} ({Of course not} 27. Rxb7 Na2 $17) 27... Nd5 {[%emt 0:00:01] Hoping for ...Nc3.} 28. Ra7 {[%emt 0:00:22]} (28. Bd3 {simplifies} g6 29. Rxc2 Rxc2 30. Bxc2 b5 31. Ra7) 28... Rc7 $36 {[%emt 0:00:40][%mdl 2048] aiming for ...Ra8. Black is more active.} 29. Bd3 $2 {[%emt 0:00:06]} (29. e4 $11 {and White stays safe.} Nf6 30. Bb5 (30. Ba6 $2 Rd8 $19)) 29... Nb4 $19 {[%emt 0:00:28]} 30. Bh7+ {[%emt 0:00:17]} Kh8 {[%emt 0:00:01]} 31. Be4 {[%emt 0:00:08] [#]} (31. Bxc2 {was the only defense.} Rfc8 32. e4) 31... Rd8 $1 {[%emt 0:00:26]} 32. Bxc2 {[%emt 0:00:51]} (32. Bxb7 Kg8) 32... Nxc2 {[%emt 0:00:29]} 33. Rxc2 $2 {[%emt 0:00:46]} (33. Rxb7 $19 Rxb7 34. Rxc2) 33... Rd1# {[%emt 0:00:01] Weighted Error Value: White=0.72/Black=0.43} 0-1

[Event "Romanian Rapid Open 2022"]
[Site "Sebes"]
[Date "2022.12.02"]
[Round "4.12"]
[White "Matasaru, Stephanie"]
[Black "Ceteras, Marius-Nicolae"]
[Result "1-0"]
[ECO "C42"]
[WhiteElo "1975"]
[BlackElo "2391"]
[Annotator "TA"]
[PlyCount "89"]
[EventDate "2022.12.02"]
[EventType "rapid"]
[EventCountry "ROU"]
[SourceTitle "playchess.com"]
[Source "ChessBase"]
[SourceQuality "1"]
[TimeControl "600+5"]

{[%evp 22,89,-4,0,15,-7,-8,-8,0,-73,-47,-36,-37,-64,-45,-49,-15,-16,-29,-52,-56,-77,-64,-77,-68,-81,-7,-103,-54,-63,-39,-37,-41,-43,0,-4,0,0,0,0,139,147,131,127,257,16,227,195,234,231,696,681,637,0,0,0,0,0,0,-247,-247,-508,-489,-477,-448,-601,-531,-401,29992,29993]} 1. e4 {[%emt 0:00:01]} e5 {[%emt 0:00:03]} 2. Nf3 {[%emt 0:00:02]} Nf6 {[%emt 0:00:00]} 3. Nxe5 {[%emt 0:00:02]} d6 {[%emt 0:00:01]} 4. Nf3 {[%emt 0:00:02]} Nxe4 {[%emt 0:00:03]} 5. d4 {[%emt 0:00:02]} d5 {[%emt 0:00:05]} 6. Bd3 {[%emt 0:00:02]} Nc6 {[%emt 0:00:03]} 7. O-O {[%emt 0:00:03]} Be7 {[%emt 0:00:00]} 8. c4 {[%emt 0:00:19]} Nb4 {[%emt 0:00:08]} 9. cxd5 {[%emt 0:00:38]} Nxd3 {[%emt 0:00:08]} 10. Qxd3 {[%emt 0:00:03]} Qxd5 {[%emt 0:00:25]} 11. Nc3 {[%emt 0:00:18]} Nxc3 {[%emt 0:00:09]} 12. bxc3 {[%emt 0:00:10] Re1 is the strong threat.} Be6 {[%emt 0:00:32] C42: Petroff Defence: 3 Nxe5 and unusual White 3rd moves.} 13. Bf4 {[%emt 0:00:43]} (13. Re1 $5 {[%cal Rc3c4]}) 13... O-O {[%emt 0:01:02]} 14. Rfe1 {[%emt 0:00:41] [#]} Rfe8 $146 {[%emt 0:01:36] The position is equal.} ({Predecessor:} 14... c6 15. c4 Qd7 16. Rad1 Bf6 17. Be5 Bf5 18. Qd2 Bg4 19. Bxf6 Bxf3 20. Qg5 Qg4 21. Qxg7+ Qxg7 22. Bxg7 Kxg7 23. gxf3 {½-½ (36) Fisher Jr,A-Laaman,T ICCF email 2017}) 15. Nd2 {[%emt 0:02:23]} (15. Bxc7 $11 Rac8 16. Bg3) 15... c6 {[%emt 0:00:49]} 16. Re5 {[%emt 0:00:21]} Qd7 {[%emt 0:00:08]} (16... Qd6 $2 17. Rh5 $18) 17. Nf3 {[%emt 0:01:58]} Bf6 {[%emt 0:00:47]} (17... f6 $5 {[%cal Rf6e5]} 18. Re3 (18. Rh5 $2 g6 $19) 18... Bf8 $15) 18. Ng5 {[%emt 0:01:16]} g6 {[%emt 0:00:20]} 19. Re3 {[%emt 0:00:41]} Bf5 {[%emt 0:00:13] A strong pair of Bishops.} 20. Rxe8+ {[%emt 0:00:16]} Rxe8 {[%emt 0:00:03]} 21. Qg3 {[%emt 0:00:05]} Bg7 {[%emt 0:01:42]} (21... c5 $5 {[%cal Rc5d4]} 22. Be5 Be7 $17) 22. h4 {[%emt 0:00:40]} Qd5 {[%emt 0:00:23]} 23. Nf3 {[%emt 0:00:52]} Re2 {[%emt 0:00:16]} ({Black should try} 23... h5 $17) 24. Be5 {[%emt 0:00:08]} (24. h5 $11 {keeps the balance.}) 24... f6 {[%emt 0:01:07]} (24... Rxa2 $6 25. Rxa2 Qxa2 26. Bxg7 Kxg7 27. Qe5+ f6 28. Qb8 $11) (24... Qa5 $1 $17 25. Bxg7 Kxg7) 25. Bb8 {[%emt 0:00:04]} Rxa2 {[%emt 0:00:13]} 26. Rxa2 {[%emt 0:00:02]} Qxa2 {[%emt 0:00:01]} 27. Qc7 {[%emt 0:00:02]} Qb1+ {[%emt 0:00:07]} (27... Qf7 {simplifies} 28. Qd8+ Qf8 29. Qc7 Qc8) 28. Kh2 {[%emt 0:00:02] Black must now prevent Qd8+.} h5 {[%emt 0:00:14]} 29. Bxa7 {[%emt 0:00:05]} Qb2 {[%emt 0:00:36]} 30. Bc5 {[%emt 0:00:12]} Qxf2 {[%emt 0:00:15]} (30... Qb3 $11) 31. Qb8+ $1 $16 {[%emt 0:00:01]} Kh7 {[%emt 0:00:02]} 32. Qxb7 {[%emt 0:00:02] White wants to mate with Bf8.} Kh6 {[%emt 0:00:31]} (32... Qa2 $16) 33. Qxc6 $2 {[%emt 0:00:02]} (33. Qf7 $1 $18 {[%cal Rf7g8] aiming for Qg8.} Qe3 34. Bf8 Bxf8 35. Qxf8+ Kh7 36. Qf7+ (36. Qxf6 Qf4+ 37. Kg1 Qe3+ 38. Kh2 Qf4+ 39. Kg1 Qe3+ 40. Kh1 Qc1+ 41. Ng1 Qxc3 $11) 36... Kh8 37. Qf8+ Kh7 38. Qf7+ (38. Qxf6 Qf4+ 39. Kh1 Qc1+ 40. Ng1 Qxc3 $11) 38... Kh8 39. Qxf6+ Kg8 40. Qxc6 (40. Ne5 Qf4+ 41. Kh1 Qc1+ 42. Kh2 Qf4+ 43. Kh1 Qc1+ 44. Kh2 Qf4+ $11)) 33... Bg4 $2 {[%emt 0:00:07]} (33... Qe2 $1 $11) 34. d5 $18 {[%emt 0:00:04][%cal Bd4d5,Bd5d6,Bd6d7][%mdl 32]} Qe2 {[%emt 0:00:16]} 35. d6 $1 {[%emt 0:00:03] And now d7 would win.} Bxf3 $2 {[%emt 0:00:13]} (35... Qe6 36. c4 Kh7) 36. Qxf3 {[%emt 0:00:02][%mdl 4096] Endgame KQB-KQB} Qe5+ {[%emt 0:00:01] [#]} 37. g3 $2 {[%emt 0:00:13]} (37. Qg3 $1 $18 {[%cal Rg3e5] Threatening mate with Qxe5.} Qf5 38. Qf2 Qxf2 39. Bxf2) 37... Qxc5 $11 {[%emt 0:00:01]} 38. d7 {[%emt 0:00:16]} Qe7 {[%emt 0:00:19] Prevents d8Q.} 39. Qd3 {[%emt 0:00:04]} Qd8 {[%emt 0:00:05] Strongly threatening ...Bf8.} 40. c4 $2 {[%emt 0:00:02]} (40. Qe3+ $1 $11 Kh7 41. Qe8) 40... Bf8 $19 {[%emt 0:00:04]} 41. Qd5 $2 {[%emt 0:00:01]} (41. Qe3+ Kg7 42. Qa7) 41... Kg7 {[%emt 0:00:07]} 42. c5 {[%emt 0:00:02] [#]} Be7 $1 {[%emt 0:00:06]} ({And not} 42... Bxc5 43. Qxc5 Qxd7 44. Kg2 $17) 43. c6 {[%emt 0:00:02]} Qc7 {[%emt 0:00:05]} 44. Qe4 {[%emt 0:00:11]} f5 $4 {[%emt 0:00:05][%mdl 8192]} (44... Bd8 $19 45. Qe6 Qe5) 45. Qxe7+ {[%emt 0:00:03] Weighted Error Value: White=0.52/Black=0.67} 1-0

[Event "Romanian Rapid Open 2022"]
[Site "Sebes"]
[Date "2022.12.02"]
[Round "4.13"]
[White "Coicev, Matei-Andrei"]
[Black "Manea, Alexandru"]
[Result "0-1"]
[ECO "B03"]
[WhiteElo "2009"]
[BlackElo "2339"]
[Annotator "TA"]
[PlyCount "63"]
[EventDate "2022.12.02"]
[EventType "rapid"]
[EventCountry "ROU"]
[SourceTitle "playchess.com"]
[Source "ChessBase"]
[SourceQuality "1"]
[TimeControl "600+5"]

{[%evp 12,63,52,0,0,-56,-25,-52,-45,-156,-149,-176,-174,-306,-237,-235,-232,-233,-191,-199,-177,-170,-166,-196,-159,-146,-130,-141,-133,-125,-135,-144,-144,-157,-102,-102,-114,-206,-200,-200,-137,-143,-143,-309,-290,-375,-371,-349,-363,-354,-316,-340,-247,-462]} 1. e4 {[%emt 0:00:01][%cal Be2e4,Be4e5][%mdl 32]} Nf6 {[%emt 0:00:00]} 2. e5 {[%emt 0:00:02]} Nd5 {[%emt 0:00:02]} 3. c4 {[%emt 0:00:01]} Nb6 {[%emt 0:00:00]} 4. d4 {[%emt 0:00:01]} d6 {[%emt 0:00:01]} 5. f4 {[%emt 0:00:01]} Bf5 {[%emt 0:00:03]} 6. Nc3 {[%emt 0:00:07]} e6 {[%emt 0:00:02]} 7. Be3 {[%emt 0:00:32]} (7. Nf3 $14) 7... dxe5 $1 {[%emt 0:00:05] 7...dxe5 scores better than 7...Be7. B03: Alekhine's Defence: Four Pawns Attack.} 8. dxe5 {[%emt 0:00:16]} (8. fxe5 $11 Bb4 9. Be2) 8... Nc6 {[%emt 0:00:17]} (8... Qxd1+ {simplifies} 9. Rxd1 Bb4 10. Kf2 Bxc3 11. bxc3 Na4) 9. Nf3 {[%emt 0:02:15]} Bb4 {[%emt 0:01:01] [#] Black is slightly better.} 10. Be2 $146 {[%emt 0:03:29]} ({White should play} 10. Qc1 $15) ({Predecessor:} 10. Qc1 Bd3 11. b3 Bxf1 12. Kxf1 Qd3+ 13. Ne2 O-O 14. Kf2 f6 15. Rd1 Qe4 16. exf6 Rxf6 {½-½ (38) Seppeur,R-Wolf,V (2245) Germany 1982}) 10... Qxd1+ $17 {[%emt 0:00:28]} 11. Rxd1 {[%emt 0:00:06]} Na4 {[%emt 0:00:05]} 12. O-O {[%emt 0:01:18]} (12. Bc1 {might work better.}) 12... Nxb2 {[%emt 0:00:07]} 13. Rc1 {[%emt 0:00:03]} O-O-O {[%emt 0:00:59] ...Nd3 is the strong threat.} 14. Nb5 {[%emt 0:00:17]} Nd3 {[%emt 0:00:46]} 15. Rcd1 {[%emt 0:00:53]} Bc5 {[%emt 0:00:12] Inhibits g4.} 16. Bxc5 {[%emt 0:00:09]} Nxc5 {[%emt 0:00:02][%cal Bd3c5,Bc5e4,Be4c3][%mdl 32]} 17. Kf2 {[%emt 0:00:20]} a6 {[%emt 0:00:35]} 18. Nbd4 {[%emt 0:00:05]} Ne4+ {[%emt 0:00:43]} 19. Ke3 {[%emt 0:00:03]} Nc3 {[%emt 0:00:02]} 20. Rd2 {[%emt 0:00:22]} Nxd4 {[%emt 0:00:39] Black is much more active.} 21. Nxd4 {[%emt 0:00:07]} Nxe2 {[%emt 0:00:01]} 22. Rxe2 {[%emt 0:00:10]} c5 {[%emt 0:00:07]} ({Black should try} 22... Bg6 {Strongly threatening ...c5.} 23. c5 Rd5) 23. Nxf5 {[%emt 0:00:13]} exf5 {[%emt 0:00:02][%cal Be6f5,Bf5g4][%mdl 4128] Endgame KRR-KRR} 24. g4 {[%emt 0:00:41]} (24. Rb1 $17 {was worth a try.}) 24... fxg4 $19 {[%emt 0:00:07]} 25. f5 {[%emt 0:00:05]} Rd4 {[%emt 0:00:22]} 26. Rf4 {[%emt 0:00:10]} Rhd8 {[%emt 0:00:07] And now ...Rd3+ would win.} 27. Rxd4 {[%emt 0:00:33] [#] This costs White the game.} (27. e6 $17) 27... Rxd4 {[%emt 0:05:25]} ({Inferior is} 27... cxd4+ 28. Kd3 $15) 28. Rc2 Kd8 {[%emt 0:00:05]} 29. Rb2 {[%emt 0:00:10]} Kc7 {[%emt 0:00:05]} ({Weaker is} 29... Rxc4 30. Rxb7 Ke8 31. Rb8+ Kd7 32. Rb7+ Kc6 33. Rxf7 $11) 30. Rc2 {[%emt 0:00:05]} g6 {[%emt 0:00:05]} 31. f6 h5 {[%emt 0:00:05] [#] Threatens to win with ...Kd7.} 32. Rf2 $2 {[%emt 0:00:10] Weighted Error Value: White=0.34/Black=0.21 (precise)} (32. e6 Rd6 33. exf7 Re6+ 34. Kf4 Rxf6+ 35. Kg5 Rxf7 36. Kxg6) 0-1